[Event "Esbjerg Efterår 2024 - Esbjergmesterskabet"]
[Site "Esbjerg, Denmark"]
[Date "2024.10.20"]
[Round "7.7"]
[White "Justesen, Asger"]
[Black "Iversen, Tobias"]
[Result "1-0"]
[TimeControl "1.-3. 20 min + 5 sek, 4.-7. 90 min + 30 sek + 15 min efter 40 træk"]
[WhiteElo "2086"]
[BlackElo "1936"]

1. d4 {[%clk 01:30:58]} d5 {[%clk 01:29:18]} {[%emt 00:01:42]} 2. c4 {[%clk
01:31:22]} {[%emt 00:00:06]} e6 {[%clk 01:28:36]} {[%emt 00:01:13]} 3. Nf3
{[%clk 01:31:37]} {[%emt 00:00:14]} c6 {[%clk 01:28:55]} {[%emt 00:00:12]} 4.
e3 {[%clk 01:30:29]} {[%emt 00:01:38]} f5 {[%clk 01:29:11]} {[%emt 00:00:14]} 5.
Bd3 {[%clk 01:30:03]} {[%emt 00:00:55]} Nf6 {[%clk 01:29:11]} {[%emt 00:00:31]}
6. O-O {[%clk 01:30:03]} {[%emt 00:00:29]} Nbd7 {[%clk 01:25:30]} {[%emt
00:04:12]} 7. cxd5 {[%clk 01:29:24]} {[%emt 00:01:09]} cxd5 {[%clk 01:25:37]}
{[%emt 00:00:22]} 8. b3 {[%clk 01:28:49]} {[%emt 00:01:06]} Bd6 {[%clk
01:25:52]} {[%emt 00:00:15]} 9. Ba3 {[%clk 01:28:24]} {[%emt 00:00:55]} Qe7
{[%clk 01:25:53]} {[%emt 00:00:29]} 10. Bxd6 {[%clk 01:28:06]} {[%emt
00:00:49]} Qxd6 {[%clk 01:26:20]} {[%emt 00:00:02]} 11. Nc3 {[%clk 01:27:14]}
{[%emt 00:01:22]} a6 {[%clk 01:26:49]} {[%emt 00:00:01]} 12. Rc1 {[%clk
01:26:41]} {[%emt 00:01:03]} O-O {[%clk 01:27:11]} {[%emt 00:00:07]} 13. Ne2
{[%clk 01:24:41]} {[%emt 00:02:30]} Ne4 {[%clk 01:24:32]} {[%emt 00:03:09]} 14.
Qc2 {[%clk 01:23:39]} {[%emt 00:01:32]} Qe7 {[%clk 01:22:10]} {[%emt 00:02:52]}
15. Qc7 {[%clk 01:20:10]} {[%emt 00:04:00]} Qf6 {[%clk 01:22:39]} {[%emt
00:00:01]} 16. Rc2 {[%clk 01:11:22]} {[%emt 00:09:17]} Rf7 {[%clk 01:23:00]}
{[%emt 00:00:10]} 17. Qa5 {[%clk 01:07:01]} {[%emt 00:04:51]} Nd6 {[%clk
01:23:28]} {[%emt 00:00:02]} 18. Rfc1 {[%clk 01:06:05]} {[%emt 00:01:24]} g5
{[%clk 01:23:49]} {[%emt 00:00:10]} 19. Qa3 {[%clk 01:02:08]} {[%emt 00:04:27]}
e5 {[%clk 01:23:57]} {[%emt 00:00:23]} 20. dxe5 {[%clk 00:57:59]} {[%emt
00:04:39]} Nxe5 {[%clk 01:24:24]} {[%emt 00:00:02]} 21. Nxe5 {[%clk 00:57:46]}
{[%emt 00:00:44]} Qxe5 {[%clk 01:24:52]} {[%emt 00:00:02]} 22. Nd4 {[%clk
00:52:37]} {[%emt 00:05:39]} g4 {[%clk 01:25:20]} {[%emt 00:00:02]} 23. Ne2
{[%clk 00:50:47]} {[%emt 00:02:19]} Bd7 {[%clk 01:25:49]} {[%emt 00:00:02]} 24.
Qa5 {[%clk 00:46:29]} {[%emt 00:04:48]} Rff8 {[%clk 01:24:26]} {[%emt
00:01:52]} 25. Nf4 {[%clk 00:44:20]} {[%emt 00:02:39]} Bc6 {[%clk 01:24:22]}
{[%emt 00:00:34]} 26. Qc3 {[%clk 00:39:55]} {[%emt 00:04:56]} Qxc3 {[%clk
01:24:26]} {[%emt 00:00:25]} 27. Rxc3 {[%clk 00:40:20]} {[%emt 00:00:05]} Kf7
{[%clk 01:20:54]} {[%emt 00:04:02]} 28. Ne2 {[%clk 00:38:17]} {[%emt 00:02:33]}
Rfc8 {[%clk 01:21:16]} {[%emt 00:00:09]} 29. Nd4 {[%clk 00:35:52]} {[%emt
00:02:55]} Bd7 {[%clk 01:21:33]} {[%emt 00:00:12]} 30. Rc7 {[%clk 00:33:13]}
{[%emt 00:03:09]} Ke8 {[%clk 01:21:53]} {[%emt 00:00:11]} 31. R7c5 {[%clk
00:29:47]} {[%emt 00:03:56]} b6 {[%clk 01:21:31]} {[%emt 00:00:52]} 32. R5c2
{[%clk 00:27:49]} {[%emt 00:02:27]} b5 {[%clk 01:20:59]} {[%emt 00:01:02]} 33.
Rc5 {[%clk 00:21:56]} {[%emt 00:06:23]} Rxc5 {[%clk 01:17:47]} {[%emt
00:03:42]} 34. Rxc5 {[%clk 00:22:17]} {[%emt 00:00:09]} Rc8 {[%clk 01:18:16]}
{[%emt 00:00:02]} 35. Rxc8+ {[%clk 00:20:21]} {[%emt 00:02:26]} Bxc8 {[%clk
01:18:44]} {[%emt 00:00:01]} 36. Kf1 {[%clk 00:18:59]} {[%emt 00:01:52]} Ke7
{[%clk 01:18:02]} {[%emt 00:01:12]} 37. Ke2 {[%clk 00:18:54]} {[%emt 00:00:36]}
Kf6 {[%clk 01:06:04]} {[%emt 00:12:28]} 38. Kd2 {[%clk 00:18:13]} {[%emt
00:01:11]} Bd7 {[%clk 01:04:26]} {[%emt 00:02:08]} 39. b4 {[%clk 00:16:46]}
{[%emt 00:01:57]} Nc4+ {[%clk 00:45:12]} {[%emt 00:19:45]} 40. Kc3 {[%clk
00:14:35]} {[%emt 00:02:40]} Ke5 {[%clk 00:40:05]} {[%emt 00:05:36]} 41. Nb3
{[%clk 00:13:57]} {[%emt 00:01:09]} Nb6 {[%clk 00:36:31]} {[%emt 00:04:04]} 42.
Nc5 {[%clk 00:13:19]} {[%emt 00:01:06]} Bc8 {[%clk 00:37:00]} {[%emt 00:00:02]}
43. Be2 {[%clk 00:12:44]} {[%emt 00:01:05]} Kd6 {[%clk 00:21:56]} {[%emt
00:15:33]} 44. Kd4 {[%clk 00:12:44]} {[%emt 00:00:30]} Nd7 {[%clk 00:21:39]}
{[%emt 00:00:48]} 45. Nd3 {[%clk 00:10:24]} {[%emt 00:02:50]} Nf8 {[%clk
00:15:19]} {[%emt 00:06:49]} 46. Kc3 {[%clk 00:09:49]} {[%emt 00:01:06]} Nd7
{[%clk 00:15:05]} {[%emt 00:00:44]} 47. Bd1 {[%clk 00:09:29]} {[%emt 00:00:49]}
Ne5 {[%clk 00:13:14]} {[%emt 00:02:22]} 48. Nf4 {[%clk 00:08:33]} {[%emt
00:01:25]} Ng6 {[%clk 00:03:28]} {[%emt 00:10:16]} 49. Nd3 {[%clk 00:05:29]}
{[%emt 00:03:34]} Ne5 {[%clk 00:03:44]} {[%emt 00:00:14]} 50. Nc1 {[%clk
00:04:25]} {[%emt 00:01:34]} Nd7 {[%clk 00:01:53]} {[%emt 00:02:21]} 51. Bc2
{[%clk 00:02:53]} {[%emt 00:02:02]} Ne5 {[%clk 00:13:51]} {[%emt 00:03:32]} 52.
Nb3 {[%clk 00:17:50]} {[%emt 00:00:33]} Nc6 {[%clk 00:13:31]} {[%emt 00:00:50]}
53. Bd3 {[%clk 00:15:31]} {[%emt 00:02:48]} Ke7 {[%clk 00:12:16]} {[%emt
00:01:46]} 54. Nc1 {[%clk 00:15:17]} {[%emt 00:00:44]} Kd6 {[%clk 00:12:07]}
{[%emt 00:00:39]} 55. Ne2 {[%clk 00:15:21]} {[%emt 00:00:25]} Ke5 {[%clk
00:11:03]} {[%emt 00:01:34]} 56. f4+ {[%clk 00:13:38]} {[%emt 00:02:13]} Kd6
{[%clk 00:09:21]} {[%emt 00:02:12]} 57. Ng3 {[%clk 00:13:51]} {[%emt 00:00:16]}
Ne7 {[%clk 00:09:25]} {[%emt 00:00:26]} 58. a3 {[%clk 00:13:34]} {[%emt
00:00:47]} Ke6 {[%clk 00:08:24]} {[%emt 00:01:30]} 59. Kd4 {[%clk 00:13:21]}
{[%emt 00:00:43]} Kd6 {[%clk 00:08:46]} {[%emt 00:00:08]} 60. Nh5 {[%clk
00:13:25]} {[%emt 00:00:26]} Nc6+ {[%clk 00:08:45]} {[%emt 00:00:31]} 61. Kc3
{[%clk 00:13:48]} {[%emt 00:00:05]} Ke7 {[%clk 00:07:28]} {[%emt 00:01:48]} 62.
Ng7 {[%clk 00:13:41]} {[%emt 00:00:38]} Kf6 {[%clk 00:07:36]} {[%emt 00:00:21]}
63. Ne8+ {[%clk 00:11:44]} {[%emt 00:02:27]} Ke7 {[%clk 00:07:36]} {[%emt
00:00:30]} 64. Ng7 {[%clk 00:08:59]} {[%emt 00:03:15]} Kf6 {[%clk 00:08:05]}
{[%emt 00:00:01]} 65. Nh5+ {[%clk 00:09:10]} {[%emt 00:00:19]} Ke7 {[%clk
00:07:16]} {[%emt 00:01:19]} 66. Ng3 {[%clk 00:09:22]} {[%emt 00:00:18]} Kf6
{[%clk 00:07:39]} {[%emt 00:00:07]} 67. Bc2 {[%clk 00:09:33]} {[%emt 00:00:19]}
Kg6 {[%clk 00:04:03]} {[%emt 00:04:06]} 68. Ne2 {[%clk 00:09:20]} {[%emt
00:00:42]} Kf6 {[%clk 00:03:04]} {[%emt 00:01:29]} 69. Nd4 {[%clk 00:09:46]}
{[%emt 00:00:04]} Ne7 {[%clk 00:03:28]} {[%emt 00:00:06]} 70. Nb3 {[%clk
00:09:39]} {[%emt 00:00:37]} Nc6 {[%clk 00:03:16]} {[%emt 00:00:43]} 71. Nd4
{[%clk 00:06:59]} {[%emt 00:03:10]} Ne7 {[%clk 00:03:45]} {[%emt 00:00:01]} 72.
a4 {[%clk 00:06:11]} {[%emt 00:01:18]} bxa4 {[%clk 00:04:13]} {[%emt 00:00:01]}
73. Bxa4 {[%clk 00:06:33]} {[%emt 00:00:08]} Bb7 {[%clk 00:03:38]} {[%emt
00:01:05]} 74. Bd7 {[%clk 00:06:25]} {[%emt 00:00:38]} Bc8 {[%clk 00:03:02]}
{[%emt 00:01:06]} 75. Be8 {[%clk 00:06:50]} {[%emt 00:00:05]} Bb7 {[%clk
00:03:04]} {[%emt 00:00:29]} 76. Nb3 {[%clk 00:06:11]} {[%emt 00:01:09]} Bc8
{[%clk 00:02:36]} {[%emt 00:00:58]} 77. Kd4 {[%clk 00:05:56]} {[%emt 00:00:44]}
Ke6 {[%clk 00:02:28]} {[%emt 00:00:38]} 78. Kc5 {[%clk 00:06:18]} {[%emt
00:00:08]} h6 {[%clk 00:01:22]} {[%emt 00:01:35]} 79. Nd4+ {[%clk 00:06:25]}
{[%emt 00:00:23]} Kf6 {[%clk 00:01:51]} 80. Kb6 {[%clk 00:06:09]} {[%emt
00:00:46]} Ng8 {[%clk 00:02:18]} {[%emt 00:00:03]} 81. Bc6 {[%clk 00:05:27]}
{[%emt 00:01:12]} Ne7 {[%clk 00:02:47]} {[%emt 00:00:02]} 82. Bb7 {[%clk
00:05:24]} {[%emt 00:00:33]} 1-0

[Event "Esbjerg Efterår 2024 - Esbjergmesterskabet"]
[Site "Esbjerg, Denmark"]
[Date "2024.10.20"]
[Round "7.8"]
[White "Husum, Lars"]
[Black "Vinther, Christoffer"]
[Result "1-0"]
[TimeControl "1.-3. 20 min + 5 sek, 4.-7. 90 min + 30 sek + 15 min efter 40 træk"]
[WhiteElo "2001"]
[BlackElo "1800"]

1. e4 {[%clk 01:30:55]} {[%emt 00:00:05]} c5 {[%clk 01:30:51]} {[%emt
00:00:09]} 2. Nc3 {[%clk 01:31:14]} {[%emt 00:00:11]} d6 {[%clk 01:30:54]}
{[%emt 00:00:26]} 3. f4 {[%clk 01:31:12]} {[%emt 00:00:33]} g6 {[%clk
01:31:08]} {[%emt 00:00:16]} 4. Nf3 {[%clk 01:31:21]} {[%emt 00:00:21]} Bg7
{[%clk 01:31:20]} {[%emt 00:00:18]} 5. Bc4 {[%clk 01:29:52]} {[%emt 00:01:59]}
e6 {[%clk 01:31:15]} {[%emt 00:00:34]} 6. O-O {[%clk 01:29:34]} {[%emt
00:00:48]} Ne7 {[%clk 01:30:40]} {[%emt 00:01:05]} 7. d3 {[%clk 01:28:25]}
{[%emt 00:01:40]} O-O {[%clk 01:30:40]} {[%emt 00:00:30]} 8. a3 {[%clk
01:27:58]} {[%emt 00:00:57]} Nbc6 {[%clk 01:30:46]} {[%emt 00:00:24]} 9. Qe1
{[%clk 01:24:51]} {[%emt 00:03:36]} a6 {[%clk 01:23:34]} {[%emt 00:07:43]} 10.
Qh4 {[%clk 01:20:39]} {[%emt 00:04:41]} Nd4 {[%clk 01:19:01]} {[%emt 00:05:04]}
11. Nxd4 {[%clk 01:07:49]} {[%emt 00:13:19]} Bxd4+ {[%clk 01:18:48]} {[%emt
00:00:44]} 12. Kh1 {[%clk 01:08:11]} {[%emt 00:00:08]} d5 {[%clk 01:17:52]}
{[%emt 00:01:26]} 13. Ba2 {[%clk 01:01:48]} {[%emt 00:06:53]} dxe4 {[%clk
01:16:23]} {[%emt 00:01:59]} 14. Nxe4 {[%clk 00:59:30]} {[%emt 00:02:48]} Nf5
{[%clk 01:16:40]} {[%emt 00:00:14]} 15. Qh3 {[%clk 00:57:40]} {[%emt 00:02:20]}
e5 {[%clk 01:12:29]} {[%emt 00:04:41]} 16. g4 {[%clk 00:57:43]} {[%emt
00:00:26]} Qh4 {[%clk 01:03:40]} {[%emt 00:09:19]} 17. Qxh4 {[%clk 00:57:51]}
{[%emt 00:00:22]} Nxh4 {[%clk 01:03:55]} {[%emt 00:00:16]} 18. c3 {[%clk
00:58:08]} {[%emt 00:00:12]} Bxg4 {[%clk 01:01:41]} {[%emt 00:02:44]} 19. Nf6+
{[%clk 00:58:31]} {[%emt 00:00:07]} 1-0